[Event "Mistrovství Čech mládeže 2023 - HD12"]
[Site "Harrachov, Czech Republic"]
[Date "2023.10.24"]
[Round "5.7"]
[White "Fadrný, Jáchym"]
[Black "Šára, David"]
[Result "1-0"]
[TimeControl "90m + 30s"]
[WhiteElo "1365"]
[BlackElo "1320"]

1. e4 {[%clk 01:30:53]} {[%emt 00:00:07]} e5 {[%clk 01:30:57]} {[%emt
00:00:03]} 2. Nf3 {[%clk 01:31:16]} {[%emt 00:00:07]} Nc6 {[%clk 01:31:25]}
{[%emt 00:00:02]} 3. d4 {[%clk 01:31:38]} {[%emt 00:00:08]} exd4 {[%clk
01:31:52]} {[%emt 00:00:03]} 4. Nxd4 {[%clk 01:32:01]} {[%emt 00:00:07]} Bc5
{[%clk 01:32:12]} {[%emt 00:00:11]} 5. Be3 {[%clk 01:32:13]} {[%emt 00:00:17]}
Qf6 {[%clk 01:32:38]} {[%emt 00:00:04]} 6. c3 {[%clk 01:31:57]} {[%emt
00:00:46]} d6 {[%clk 01:33:02]} {[%emt 00:00:06]} 7. Qd2 {[%clk 01:31:15]}
{[%emt 00:01:12]} Bd7 {[%clk 01:32:56]} {[%emt 00:00:36]} 8. Bb5 {[%clk
01:25:50]} {[%emt 00:05:54]} Nge7 {[%clk 01:32:31]} {[%emt 00:00:56]} 9. O-O
{[%clk 01:20:41]} {[%emt 00:05:40]} Qg6 {[%clk 01:30:03]} {[%emt 00:02:49]} 10.
Re1 {[%clk 01:13:54]} {[%emt 00:07:25]} a6 {[%clk 01:29:04]} {[%emt 00:01:28]}
11. Nxc6 {[%clk 01:07:27]} {[%emt 00:06:57]} Bxc6 {[%clk 01:28:05]} {[%emt
00:01:29]} 12. Bxc6+ {[%clk 01:06:13]} {[%emt 00:01:45]} Nxc6 {[%clk 01:28:21]}
{[%emt 00:00:14]} 13. Bxc5 {[%clk 01:03:09]} {[%emt 00:03:34]} Ne5 {[%clk
01:26:08]} {[%emt 00:02:43]} 14. Kh1 {[%clk 00:57:48]} {[%emt 00:05:40]} dxc5
{[%clk 01:23:00]} {[%emt 00:03:49]} 15. Na3 {[%clk 00:45:21]} {[%emt 00:12:58]}
O-O {[%clk 01:21:12]} {[%emt 00:02:17]} 16. Rad1 {[%clk 00:40:37]} {[%emt
00:05:13]} f5 {[%clk 01:19:28]} {[%emt 00:02:13]} 17. Qd5+ {[%clk 00:35:38]}
{[%emt 00:05:30]} Nf7 {[%clk 01:19:06]} {[%emt 00:00:53]} 18. exf5 {[%clk
00:31:27]} {[%emt 00:04:41]} Qg4 {[%clk 01:16:03]} {[%emt 00:03:24]} 19. Qe6
{[%clk 00:28:57]} {[%emt 00:02:37]} Qf4 {[%clk 01:09:12]} {[%emt 00:07:16]} 20.
Kg1 {[%clk 00:24:19]} {[%emt 00:05:45]} Kh8 {[%clk 01:06:53]} {[%emt 00:02:48]}
21. Nc4 {[%clk 00:19:57]} {[%emt 00:04:52]} Ng5 {[%clk 01:04:59]} {[%emt
00:02:15]} 22. Qd5 {[%clk 00:13:31]} {[%emt 00:07:04]} Rxf5 {[%clk 01:04:31]}
{[%emt 00:01:00]} 23. Qd3 {[%clk 00:11:27]} {[%emt 00:02:28]} Qxf2+ {[%clk
01:02:13]} {[%emt 00:02:53]} 24. Kh1 {[%clk 00:10:29]} {[%emt 00:01:28]} Raf8
{[%clk 01:02:06]} {[%emt 00:00:37]} 25. Ne3 {[%clk 00:10:04]} {[%emt 00:00:56]}
R5f7 {[%clk 00:57:00]} {[%emt 00:05:29]} 26. Rf1 {[%clk 00:08:16]} {[%emt
00:02:25]} Ne4 {[%clk 00:50:42]} {[%emt 00:06:48]} 27. Qc4 {[%clk 00:03:40]}
{[%emt 00:05:03]} Qh4 {[%clk 00:43:57]} {[%emt 00:06:59]} 28. Rxf7 {[%clk
00:02:03]} {[%emt 00:02:26]} Rg8 {[%clk 00:43:27]} {[%emt 00:01:00]} 29. Rff1
{[%clk 00:01:09]} {[%emt 00:01:24]} h6 {[%clk 00:42:27]} {[%emt 00:01:30]} 30.
Kg1 {[%clk 00:01:13]} {[%emt 00:00:26]} Qe7 {[%clk 00:42:14]} {[%emt 00:00:41]}
31. Nf5 {[%clk 00:01:20]} {[%emt 00:00:25]} Qe8 {[%clk 00:41:17]} {[%emt
00:00:58]} 32. Rfe1 {[%clk 00:01:15]} {[%emt 00:01:05]} Nd2 {[%emt 00:00:58]}
33. Rxe8 {[%clk 00:01:30]} {[%emt 00:00:12]} Nxc4 {[%clk 00:41:13]} {[%emt
00:00:08]} 34. Rxg8+ {[%clk 00:01:53]} {[%emt 00:00:07]} Kxg8 {[%clk 00:41:39]}
{[%emt 00:00:04]} 35. b3 {[%clk 00:02:12]} {[%emt 00:00:10]} Ne5 {[%clk
00:41:42]} {[%emt 00:00:27]} 36. Ne3 {[%clk 00:02:26]} {[%emt 00:00:16]} Kf7
{[%clk 00:42:00]} {[%emt 00:00:12]} 37. Nc4 {[%clk 00:02:35]} {[%emt 00:00:20]}
Nxc4 {[%clk 00:42:14]} {[%emt 00:00:18]} 38. bxc4 {[%clk 00:02:59]} {[%emt
00:00:06]} Ke6 {[%clk 00:42:43]} {[%emt 00:00:02]} 39. Kf2 {[%clk 00:03:18]}
{[%emt 00:00:11]} Ke5 {[%clk 00:43:08]} {[%emt 00:00:04]} 40. Ke3 {[%clk
00:03:40]} {[%emt 00:00:07]} c6 {[%clk 00:43:26]} {[%emt 00:00:13]} 41. Rd7
{[%clk 00:04:04]} {[%emt 00:00:06]} b5 {[%clk 00:43:52]} {[%emt 00:00:04]} 42.
Ra7 {[%clk 00:04:14]} {[%emt 00:00:21]} bxc4 {[%clk 00:43:57]} {[%emt
00:00:25]} 43. Rxa6 {[%clk 00:04:39]} {[%emt 00:00:05]} Kd5 {[%clk 00:44:22]}
{[%emt 00:00:04]} 44. Ra7 {[%clk 00:04:42]} {[%emt 00:00:28]} g6 {[%clk
00:44:43]} {[%emt 00:00:08]} 45. Rd7+ {[%clk 00:04:57]} {[%emt 00:00:15]} Ke5
{[%clk 00:45:06]} {[%emt 00:00:07]} 46. Rd1 {[%clk 00:05:22]} {[%emt 00:00:05]}
h5 {[%clk 00:45:24]} {[%emt 00:00:13]} 47. a4 {[%clk 00:05:48]} {[%emt
00:00:04]} 1-0

[Event "Mistrovství Čech mládeže 2023 - HD12"]
[Site "Harrachov, Czech Republic"]
[Date "2023.10.24"]
[Round "5.9"]
[White "Hokr, Matyáš"]
[Black "Ta, Xuan Nguyen"]
[Result "1-0"]
[TimeControl "90m + 30s"]
[WhiteElo "1352"]
[BlackElo "1252"]

1. e4 {[%clk 01:30:41]} {[%emt 00:00:19]} e5 {[%clk 01:30:23]} {[%emt
00:00:38]} 2. Nf3 {[%clk 01:30:08]} {[%emt 00:01:03]} Nc6 {[%clk 01:30:28]}
{[%emt 00:00:24]} 3. Bc4 {[%clk 01:28:44]} {[%emt 00:01:55]} Bc5 {[%clk
01:29:13]} {[%emt 00:01:46]} 4. d4 {[%clk 01:25:27]} {[%emt 00:03:47]} Nxd4
{[%clk 01:24:04]} {[%emt 00:05:39]} 5. Nxd4 {[%clk 01:23:05]} {[%emt 00:02:51]}
Bxd4 {[%clk 01:20:51]} {[%emt 00:03:42]} 6. c3 {[%clk 01:22:35]} {[%emt
00:01:02]} Bb6 {[%clk 01:20:15]} {[%emt 00:01:06]} 7. O-O {[%clk 01:16:14]}
{[%emt 00:06:51]} h6 {[%clk 01:18:54]} {[%emt 00:01:49]} 8. Be3 {[%clk
01:15:17]} {[%emt 00:01:28]} Nf6 {[%clk 01:18:11]} {[%emt 00:01:14]} 9. Bxb6
{[%clk 01:14:43]} {[%emt 00:01:04]} axb6 {[%clk 01:18:14]} {[%emt 00:00:27]} 10.
f4 {[%clk 01:14:14]} {[%emt 00:00:59]} Nxe4 {[%clk 01:14:41]} {[%emt 00:04:03]}
11. Qd5 {[%clk 01:13:17]} {[%emt 00:01:26]} Nd6 {[%clk 01:12:30]} {[%emt
00:02:41]} 12. fxe5 {[%clk 01:13:34]} {[%emt 00:00:14]} Ra5 {[%clk 01:04:09]}
{[%emt 00:08:52]} 13. Qf3 {[%clk 01:08:46]} {[%emt 00:05:17]} O-O {[%clk
00:59:55]} {[%emt 00:04:44]} 14. exd6 {[%clk 01:07:34]} {[%emt 00:01:42]} cxd6
{[%clk 01:00:09]} {[%emt 00:00:15]} 15. Nd2 {[%clk 01:07:15]} {[%emt 00:00:50]}
Qe7 {[%clk 00:47:01]} {[%emt 00:13:37]} 16. Rae1 {[%clk 01:04:01]} {[%emt
00:03:45]} Re5 {[%clk 00:47:14]} {[%emt 00:00:17]} 17. Qg3 {[%clk 01:01:02]}
{[%emt 00:03:26]} Kh8 {[%clk 00:42:03]} {[%emt 00:05:42]} 18. Nf3 {[%clk
00:57:50]} {[%emt 00:03:43]} Re3 {[%clk 00:35:18]} {[%emt 00:07:12]} 19. Qf4
{[%clk 00:56:55]} {[%emt 00:01:27]} Rxe1 {[%clk 00:26:32]} {[%emt 00:09:17]} 20.
Rxe1 {[%clk 00:57:14]} {[%emt 00:00:11]} Qf6 {[%emt 00:06:16]} 21. Qxf6 {[%clk
00:57:26]} {[%emt 00:00:17]} gxf6 {[%clk 00:21:02]} {[%emt 00:00:16]} 22. Re7
{[%clk 00:57:11]} {[%emt 00:00:45]} Kg7 {[%clk 00:21:07]} {[%emt 00:00:24]} 23.
Nh4 {[%clk 00:57:19]} {[%emt 00:00:22]} f5 {[%clk 00:20:47]} {[%emt 00:00:51]}
24. Nxf5+ {[%clk 00:55:49]} {[%emt 00:01:59]} Kf6 {[%clk 00:20:50]} {[%emt
00:00:24]} 25. g4 {[%clk 00:55:40]} {[%emt 00:00:42]} d5 {[%clk 00:19:40]}
{[%emt 00:01:35]} 26. Bxd5 {[%clk 00:55:03]} {[%emt 00:01:13]} d6 {[%clk
00:19:43]} {[%emt 00:00:27]} 27. Re2 {[%clk 00:54:59]} {[%emt 00:00:29]} Rg8
{[%clk 00:18:34]} {[%emt 00:01:38]} 28. Ng3 {[%clk 00:52:56]} {[%emt 00:02:38]}
Rxg4 {[%clk 00:17:46]} {[%emt 00:01:18]} 29. Rf2+ {[%clk 00:52:41]} {[%emt
00:00:46]} Kg6 {[%clk 00:12:14]} {[%emt 00:06:02]} 30. Bxf7+ {[%clk 00:51:47]}
{[%emt 00:01:23]} Kg7 {[%clk 00:11:52]} {[%emt 00:00:52]} 31. Bd5 {[%clk
00:51:57]} {[%emt 00:00:19]} Rg5 {[%clk 00:11:06]} {[%emt 00:01:18]} 32. Bg2
{[%clk 00:51:34]} {[%emt 00:00:52]} d5 {[%emt 00:00:55]} 33. Kf1 {[%clk
00:50:29]} {[%emt 00:01:33]} Bg4 {[%clk 00:09:13]} {[%emt 00:02:00]} 34. Ke1
{[%clk 00:49:30]} {[%emt 00:01:30]} Re5+ {[%clk 00:07:31]} {[%emt 00:02:10]} 35.
Kd2 {[%clk 00:49:28]} {[%emt 00:00:34]} Be6 {[%clk 00:05:56]} {[%emt 00:02:04]}
36. Re2 {[%clk 00:49:40]} {[%emt 00:00:18]} Kf6 {[%clk 00:04:21]} {[%emt
00:02:03]} 37. Rxe5 {[%clk 00:50:03]} {[%emt 00:00:10]} Kxe5 {[%clk 00:04:41]}
{[%emt 00:00:09]} 38. Ke3 {[%clk 00:50:22]} {[%emt 00:00:11]} b5 {[%clk
00:04:14]} {[%emt 00:00:57]} 39. b4 {[%clk 00:50:39]} {[%emt 00:00:13]} b6
{[%clk 00:04:13]} {[%emt 00:00:32]} 40. Ne2 {[%clk 00:50:51]} {[%emt 00:00:17]}
Bf7 {[%clk 00:01:03]} {[%emt 00:03:40]} 41. Nd4 {[%clk 00:51:01]} {[%emt
00:00:20]} Be8 {[%clk 00:01:17]} {[%emt 00:00:17]} 42. Bf1 {[%clk 00:51:21]}
{[%emt 00:00:10]} h5 {[%clk 00:00:37]} {[%emt 00:01:09]} 43. Bxb5 {[%clk
00:51:39]} {[%emt 00:00:12]} Bg6 {[%clk 00:00:49]} {[%emt 00:00:18]} 44. h4
{[%clk 00:51:50]} {[%emt 00:00:18]} Be4 {[%clk 00:00:38]} {[%emt 00:00:42]} 45.
Be8 {[%clk 00:52:00]} {[%emt 00:00:21]} Kf6 {[%clk 00:00:37]} {[%emt 00:00:30]}
46. Bxh5 {[%clk 00:52:16]} {[%emt 00:00:14]} Kg7 {[%clk 00:00:47]} {[%emt
00:00:20]} 47. Bf3 {[%clk 00:52:37]} {[%emt 00:00:10]} 1-0

[Event "Mistrovství Čech mládeže 2023 - HD12"]
[Site "Harrachov, Czech Republic"]
[Date "2023.10.24"]
[Round "5.11"]
[White "Kroulík, Štěpán"]
[Black "Mauric, Jan"]
[Result "1-0"]
[TimeControl "90m + 30s"]
[WhiteElo "1454"]
[BlackElo "1260"]

1. e4 {[%clk 01:30:57]} {[%emt 00:00:02]} e6 {[%clk 01:30:36]} {[%emt
00:00:25]} 2. d4 {[%clk 01:30:53]} {[%emt 00:00:33]} b6 {[%clk 01:31:02]}
{[%emt 00:00:05]} 3. Bd3 {[%clk 01:31:06]} {[%emt 00:00:17]} Bb7 {[%clk
01:31:26]} {[%emt 00:00:07]} 4. Nf3 {[%clk 01:30:45]} {[%emt 00:00:49]} c5
{[%clk 01:29:52]} {[%emt 00:02:05]} 5. Be3 {[%clk 01:30:24]} {[%emt 00:00:51]}
Qc7 {[%clk 01:27:09]} {[%emt 00:03:13]} 6. O-O {[%clk 01:29:50]} {[%emt
00:01:03]} c4 {[%clk 01:27:29]} {[%emt 00:00:11]} 7. Be2 {[%clk 01:29:59]}
{[%emt 00:00:21]} Bxe4 {[%clk 01:27:47]} {[%emt 00:00:12]} 8. Nc3 {[%clk
01:28:27]} {[%emt 00:02:02]} Bb7 {[%clk 01:22:15]} {[%emt 00:06:02]} 9. Ne5
{[%clk 01:24:45]} {[%emt 00:04:11]} d5 {[%clk 01:21:29]} {[%emt 00:01:17]} 10.
Bf4 {[%clk 01:22:25]} {[%emt 00:02:49]} Qd8 {[%clk 01:17:39]} {[%emt 00:04:20]}
11. Re1 {[%clk 01:14:47]} {[%emt 00:08:08]} Nd7 {[%clk 01:09:47]} {[%emt
00:08:22]} 12. Nb5 {[%clk 01:01:24]} {[%emt 00:13:54]} Nxe5 {[%clk 01:04:06]}
{[%emt 00:06:10]} 13. Bxe5 {[%clk 01:00:59]} {[%emt 00:00:55]} Kd7 {[%clk
01:04:00]} {[%emt 00:00:37]} 14. Bg4 {[%clk 00:58:17]} {[%emt 00:03:11]} Kc6
{[%clk 00:50:54]} {[%emt 00:13:37]} 15. a4 {[%clk 00:54:10]} {[%emt 00:04:37]}
a6 {[%clk 00:48:51]} {[%emt 00:02:33]} 16. Nc7 {[%clk 00:41:48]} {[%emt
00:12:51]} Rc8 {[%clk 00:48:17]} {[%emt 00:01:05]} 17. Qf3 {[%clk 00:39:11]}
{[%emt 00:03:07]} Nf6 {[%clk 00:38:11]} {[%emt 00:10:36]} 18. Nxe6 {[%clk
00:19:48]} {[%emt 00:19:52]} fxe6 {[%clk 00:38:12]} {[%emt 00:00:29]} 19. Bxe6
{[%clk 00:14:26]} {[%emt 00:05:52]} Ra8 {[%clk 00:38:00]} {[%emt 00:00:42]} 20.
b3 {[%clk 00:14:09]} {[%emt 00:00:47]} b5 {[%clk 00:35:49]} {[%emt 00:02:42]}
21. axb5+ {[%clk 00:12:42]} {[%emt 00:01:57]} axb5 {[%clk 00:36:10]} {[%emt
00:00:09]} 22. Rxa8 {[%clk 00:12:36]} {[%emt 00:00:36]} Bxa8 {[%clk 00:36:31]}
{[%emt 00:00:09]} 23. Ra1 {[%clk 00:12:14]} {[%emt 00:00:51]} Be7 {[%clk
00:36:13]} {[%emt 00:00:48]} 24. bxc4 {[%clk 00:11:29]} {[%emt 00:01:15]} bxc4
{[%clk 00:36:23]} {[%emt 00:00:21]} 25. Bxf6 {[%clk 00:11:04]} {[%emt
00:00:54]} Bxf6 {[%clk 00:36:17]} {[%emt 00:00:36]} 26. Rxa8 {[%clk 00:11:26]}
{[%emt 00:00:09]} Qd6 {[%clk 00:34:59]} {[%emt 00:01:48]} 27. Ra6+ {[%clk
00:11:49]} {[%emt 00:00:07]} Kc7 {[%clk 00:35:18]} {[%emt 00:00:10]} 28. Rxd6
{[%clk 00:11:51]} {[%emt 00:00:28]} 1-0

[Event "Mistrovství Čech mládeže 2023 - HD12"]
[Site "Harrachov, Czech Republic"]
[Date "2023.10.24"]
[Round "5.12"]
[White "Zelenka, Tomáš"]
[Black "Ježek, Jiří"]
[Result "1/2-1/2"]
[TimeControl "90m + 30s"]
[WhiteElo "1281"]
[BlackElo "1392"]

1. e4 {[%clk 01:30:55]} {[%emt 00:00:04]} c5 {[%clk 01:30:43]} {[%emt
00:00:17]} 2. g3 {[%clk 01:30:59]} {[%emt 00:00:26]} g6 {[%clk 01:30:20]}
{[%emt 00:00:53]} 3. d3 {[%clk 01:31:19]} {[%emt 00:00:09]} Nc6 {[%clk
01:30:04]} {[%emt 00:00:47]} 4. Bg2 {[%clk 01:31:12]} {[%emt 00:00:36]} Bg7
{[%clk 01:30:00]} {[%emt 00:00:34]} 5. f4 {[%clk 01:31:17]} {[%emt 00:00:25]}
d6 {[%clk 01:30:07]} {[%emt 00:00:23]} 6. Nf3 {[%clk 01:31:27]} {[%emt
00:00:20]} e6 {[%clk 01:29:57]} {[%emt 00:00:41]} 7. O-O {[%clk 01:31:07]}
{[%emt 00:00:50]} Nge7 {[%clk 01:29:44]} {[%emt 00:00:42]} 8. c3 {[%clk
01:30:19]} {[%emt 00:01:19]} O-O {[%clk 01:25:49]} {[%emt 00:04:25]} 9. Be3
{[%clk 01:29:10]} {[%emt 00:01:38]} Rb8 {[%clk 01:19:50]} {[%emt 00:06:30]} 10.
Nbd2 {[%clk 01:25:02]} {[%emt 00:04:37]} b5 {[%clk 01:17:16]} {[%emt 00:03:05]}
11. d4 {[%clk 01:24:47]} {[%emt 00:00:46]} cxd4 {[%clk 01:15:36]} {[%emt
00:02:10]} 12. cxd4 {[%clk 01:25:00]} {[%emt 00:00:15]} a6 {[%clk 01:12:03]}
{[%emt 00:04:05]} 13. e5 {[%clk 01:23:23]} {[%emt 00:02:06]} d5 {[%clk
01:07:08]} {[%emt 00:05:24]} 14. Rc1 {[%clk 01:21:34]} {[%emt 00:02:19]} Bb7
{[%clk 01:06:14]} {[%emt 00:01:25]} 15. Nb3 {[%clk 01:21:01]} {[%emt 00:01:03]}
Qd7 {[%clk 01:02:33]} {[%emt 00:04:11]} 16. Nc5 {[%clk 01:20:49]} {[%emt
00:00:42]} Qc7 {[%clk 01:01:05]} {[%emt 00:01:58]} 17. Ng5 {[%clk 01:18:12]}
{[%emt 00:03:07]} Bc8 {[%clk 00:59:07]} {[%emt 00:02:28]} 18. Bh3 {[%clk
01:16:29]} {[%emt 00:02:08]} Nf5 {[%clk 00:56:29]} {[%emt 00:03:14]} 19. Bxf5
{[%clk 01:16:41]} {[%emt 00:00:16]} gxf5 {[%clk 00:56:05]} {[%emt 00:00:54]} 20.
Qh5 {[%clk 01:15:52]} {[%emt 00:01:13]} h6 {[%clk 00:56:08]} {[%emt 00:00:34]}
21. Nf3 {[%clk 01:15:13]} {[%emt 00:01:08]} Bb7 {[%clk 00:51:48]} {[%emt
00:04:51]} 22. a3 {[%clk 01:07:01]} {[%emt 00:08:42]} Qe7 {[%clk 00:47:57]}
{[%emt 00:04:20]} 23. Nxb7 {[%clk 01:06:14]} {[%emt 00:01:18]} Qxb7 {[%clk
00:48:12]} {[%emt 00:00:15]} 24. Rc5 {[%clk 01:05:49]} {[%emt 00:00:54]} Rfc8
{[%clk 00:40:54]} {[%emt 00:07:49]} 25. Rfc1 {[%clk 01:04:37]} {[%emt
00:01:39]} Qd7 {[%clk 00:32:05]} {[%emt 00:09:22]} 26. h3 {[%clk 01:00:40]}
{[%emt 00:04:26]} Na5 {[%clk 00:27:19]} {[%emt 00:05:18]} 27. Rxc8+ {[%clk
00:59:24]} {[%emt 00:01:45]} Rxc8 {[%clk 00:27:13]} {[%emt 00:00:36]} 28. Rxc8+
{[%clk 00:58:59]} {[%emt 00:00:54]} Qxc8 {[%clk 00:27:20]} {[%emt 00:00:24]} 29.
g4 {[%clk 00:58:49]} {[%emt 00:00:39]} Nc4 {[%clk 00:22:31]} {[%emt 00:05:21]}
30. Bc1 {[%clk 00:58:46]} {[%emt 00:00:26]} Qc7 {[%clk 00:19:55]} {[%emt
00:03:13]} 31. g5 {[%clk 00:58:26]} {[%emt 00:00:48]} Kh7 {[%clk 00:19:42]}
{[%emt 00:00:44]} 32. gxh6 {[%clk 00:58:27]} {[%emt 00:00:30]} Bxh6 {[%clk
00:19:42]} {[%emt 00:00:30]} 33. Ng5+ {[%clk 00:58:01]} {[%emt 00:00:54]} Kg7
{[%clk 00:19:33]} {[%emt 00:00:41]} 34. Qd1 {[%clk 00:54:30]} {[%emt 00:03:55]}
Qc6 {[%clk 00:13:37]} {[%emt 00:06:32]} 1/2-1/2

[Event "Mistrovství Čech mládeže 2023 - HD12"]
[Site "Harrachov, Czech Republic"]
[Date "2023.10.24"]
[Round "5.13"]
[White "Bukovskij, Dmitri"]
[Black "Zeman, Jonáš"]
[Result "1/2-1/2"]
[TimeControl "90m + 30s"]
[WhiteElo "1391"]
[BlackElo "1216"]

1. d4 {[%clk 01:30:48]} {[%emt 00:00:11]} Nf6 {[%clk 01:29:42]} {[%emt
00:01:17]} 2. c4 {[%clk 01:30:29]} {[%emt 00:00:50]} e6 {[%clk 01:29:53]}
{[%emt 00:00:18]} 3. Nc3 {[%clk 01:30:28]} {[%emt 00:00:31]} Bb4 {[%clk
01:30:05]} {[%emt 00:00:18]} 4. a3 {[%clk 01:30:11]} {[%emt 00:00:48]} Bxc3+
{[%clk 01:30:16]} {[%emt 00:00:18]} 5. bxc3 {[%clk 01:30:29]} {[%emt 00:00:13]}
O-O {[%clk 01:29:42]} {[%emt 00:01:04]} 6. Nf3 {[%clk 01:29:47]} {[%emt
00:01:14]} h6 {[%clk 01:28:16]} {[%emt 00:01:54]} 7. Bf4 {[%clk 01:29:11]}
{[%emt 00:01:06]} d5 {[%clk 01:27:21]} {[%emt 00:01:25]} 8. e3 {[%clk
01:28:10]} {[%emt 00:01:31]} Nc6 {[%clk 01:26:29]} {[%emt 00:01:22]} 9. Ne5
{[%clk 01:27:30]} {[%emt 00:01:10]} dxc4 {[%clk 01:17:44]} {[%emt 00:09:16]} 10.
Nxc6 {[%clk 01:27:37]} {[%emt 00:00:22]} bxc6 {[%clk 01:17:56]} {[%emt
00:00:18]} 11. Bxc4 {[%clk 01:27:50]} {[%emt 00:00:17]} Nd5 {[%clk 01:17:16]}
{[%emt 00:01:09]} 12. Bxd5 {[%clk 01:27:28]} {[%emt 00:00:52]} cxd5 {[%clk
01:17:31]} {[%emt 00:00:15]} 13. O-O {[%clk 01:27:21]} {[%emt 00:00:38]} Ba6
{[%clk 01:17:26]} {[%emt 00:00:35]} 14. Re1 {[%clk 01:27:22]} {[%emt 00:00:29]}
c6 {[%clk 01:15:16]} {[%emt 00:02:40]} 15. Rb1 {[%clk 01:23:40]} {[%emt
00:04:13]} Bc4 {[%clk 01:14:34]} {[%emt 00:01:11]} 16. Rb7 {[%clk 01:23:33]}
{[%emt 00:00:38]} Qa5 {[%clk 01:10:04]} {[%emt 00:04:59]} 17. Bd6 {[%clk
01:22:51]} {[%emt 00:01:13]} Qa6 {[%clk 01:03:48]} {[%emt 00:06:45]} 18. Bxf8
{[%clk 01:21:40]} {[%emt 00:01:40]} Qxb7 {[%clk 01:03:59]} {[%emt 00:00:19]} 19.
Bc5 {[%clk 01:21:43]} {[%emt 00:00:27]} a5 {[%clk 01:01:36]} {[%emt 00:02:53]}
20. h3 {[%clk 01:21:21]} {[%emt 00:00:53]} a4 {[%clk 01:00:55]} {[%emt
00:01:11]} 21. Bb4 {[%clk 01:20:58]} {[%emt 00:00:53]} Qd7 {[%clk 00:59:32]}
{[%emt 00:01:53]} 22. Qf3 {[%clk 01:19:37]} {[%emt 00:01:51]} Qd8 {[%clk
00:57:34]} {[%emt 00:02:27]} 23. e4 {[%clk 01:19:17]} {[%emt 00:00:51]} Qf6
{[%clk 00:54:35]} {[%emt 00:03:28]} 24. Qxf6 {[%clk 01:19:29]} {[%emt
00:00:19]} gxf6 {[%clk 00:54:53]} {[%emt 00:00:11]} 25. Be7 {[%clk 01:19:22]}
{[%emt 00:00:38]} Kh7 {[%clk 00:53:14]} {[%emt 00:02:08]} 26. exd5 {[%emt
00:03:32]} cxd5 {[%clk 00:52:48]} {[%emt 00:00:53]} 27. Bxf6 {[%clk 01:16:32]}
{[%emt 00:00:22]} Bd3 {[%clk 00:50:20]} {[%emt 00:02:56]} 28. Re3 {[%clk
01:14:33]} {[%emt 00:02:31]} Bg6 {[%clk 00:50:08]} {[%emt 00:00:41]} 29. Be5
{[%clk 01:14:46]} {[%emt 00:00:18]} Ra7 {[%clk 00:49:39]} {[%emt 00:00:59]} 30.
Bd6 {[%clk 01:14:17]} {[%emt 00:00:58]} Rb7 {[%clk 00:49:37]} {[%emt 00:00:32]}
31. Bb4 {[%clk 01:14:35]} {[%emt 00:00:13]} Rb8 {[%clk 00:49:22]} {[%emt
00:00:44]} 32. f4 {[%clk 01:14:49]} {[%emt 00:00:17]} Rg8 {[%clk 00:47:02]}
{[%emt 00:02:48]} 33. g4 {[%clk 01:14:08]} {[%emt 00:01:13]} Be4 {[%clk
00:45:58]} {[%emt 00:01:33]} 34. Kh2 {[%clk 01:13:37]} {[%emt 00:01:01]} f5
{[%clk 00:40:33]} {[%emt 00:05:55]} 35. Rg3 {[%clk 01:12:20]} {[%emt 00:01:48]}
fxg4 {[%clk 00:37:04]} {[%emt 00:03:59]} 36. Rxg4 {[%clk 01:12:20]} {[%emt
00:00:30]} Rxg4 {[%clk 00:37:10]} {[%emt 00:00:24]} 37. hxg4 {[%clk 01:12:44]}
{[%emt 00:00:06]} Kg6 {[%clk 00:37:14]} {[%emt 00:00:25]} 38. Kg3 {[%clk
01:13:04]} {[%emt 00:00:11]} h5 {[%clk 00:36:52]} {[%emt 00:00:51]} 39. gxh5+
{[%clk 01:12:34]} {[%emt 00:01:00]} Kxh5 {[%clk 00:37:04]} {[%emt 00:00:18]} 40.
Bd6 {[%clk 01:12:39]} {[%emt 00:00:27]} Kg6 {[%clk 00:36:42]} {[%emt 00:00:51]}
41. Kf2 {[%clk 01:12:50]} {[%emt 00:00:19]} Kf5 {[%clk 00:36:05]} {[%emt
00:01:06]} 42. Ke3 {[%clk 01:11:17]} {[%emt 00:02:04]} Bc2 {[%clk 00:35:09]}
{[%emt 00:01:26]} 43. Kd2 {[%clk 01:11:42]} {[%emt 00:00:06]} Bb3 {[%clk
00:35:09]} {[%emt 00:00:29]} 44. Be5 {[%clk 01:11:27]} {[%emt 00:00:46]} Bc4
{[%clk 00:35:12]} {[%emt 00:00:26]} 45. Ke3 {[%clk 01:11:48]} {[%emt 00:00:10]}
Bb3 {[%clk 00:35:24]} {[%emt 00:00:17]} 46. Kf3 {[%clk 01:12:12]} {[%emt
00:00:07]} Bc4 {[%clk 00:35:09]} {[%emt 00:00:45]} 47. Kg3 {[%clk 01:12:22]}
{[%emt 00:00:20]} Bb3 {[%clk 00:35:15]} {[%emt 00:00:23]} 48. Kh4 {[%clk
01:11:55]} {[%emt 00:00:58]} Bd1 {[%clk 00:35:06]} {[%emt 00:00:39]} 1/2-1/2